[Event "31st MPL National U18 Chess-ch 2022"]
[Site "Pollachi"]
[Date "2022.04.18"]
[Round "1.1"]
[White "Bharath Subramaniyam H"]
[Black "Kavin Oviyan R"]
[Result "1-0"]
[ECO "A05"]
[WhiteElo "2508"]
[BlackElo "1356"]
[Annotator "TA"]
[PlyCount "51"]
[EventDate "2022.04.18"]
[EventCountry "IND"]
[SourceTitle "playchess.com"]
[Source "ChessBase"]
[SourceQuality "1"]
[TimeControl "5400+30"]

{[%evp 17,51,24,45,60,96,106,297,307,425,447,431,444,774,763,758,727,762,739,804,809,799,806,1006,979,1672,1629,1713,1750,1766,1735,1837,1733,3163,2015,5402,2851]} 1. b3 {[%emt 0:00:02]} Nf6 {[%emt 0:00:15]} 2. Bb2 {[%emt 0:00:08]} g6 {[%emt 0:01:15]} 3. Nf3 {[%emt 0:00:13]} Bg7 {[%emt 0:00:07]} 4. g3 {[%emt 0:00:10]} O-O {[%emt 0:00:15]} 5. Bg2 {[%emt 0:00:07]} c5 {[%emt 0:00:50]} 6. c4 {[%emt 0:00:08]} d5 {[%emt 0:00:15]} 7. cxd5 {[%emt 0:00:27]} Nxd5 {[%emt 0:00:04]} 8. Bxg7 {[%emt 0:00:57]} Kxg7 {[%emt 0:00:03]} 9. O-O {[%emt 0:00:12]} Nc6 {[%emt 0:00:13]} 10. d4 {[%emt 0:00:24] Against e5. A05: Réti Opening: 1 Nf3 Nf6.} Bf5 {[%emt 0:23:24]} 11. dxc5 {[%emt 0:03:55]} Ncb4 $2 {[%emt 0:01:57] [#]} (11... Nf6 $16) 12. e4 $146 {[%emt 0:02:19][%cal Be2e4,Be4f5][%mdl 32] White has a decisive advantage.} ({Predecessor:} 12. Qd4+ Kg8 13. Ne1 Be6 14. a3 Nc6 15. Qd2 a5 16. Nc2 Qd7 17. Nc3 Rfd8 18. Nxd5 Bxd5 {½-½ (40) Radisic,S (1632)-Fromme,T (1755) Muensterland 2005}) 12... Ne3 {[%emt 0:05:42]} 13. fxe3 {[%emt 0:01:55] White is clearly winning.} Qxd1 {[%emt 1:02:40]} 14. Rxd1 {[%emt 0:00:10]} Nc2 {[%emt 0:00:00] [#]} (14... Bg4 $142 15. Na3 Rfd8 16. Rxd8 Rxd8) 15. exf5 $1 {[%emt 0:00:11]} Nxa1 {[%emt 0:00:00]} 16. Na3 {[%emt 0:00:17]} Nxb3 {[%emt 0:00:00]} 17. axb3 {[%emt 0:00:08]} Rfd8 {[%emt 0:00:00]} 18. Rxd8 {[%emt 0:01:46]} Rxd8 {[%emt 0:00:00]} 19. Nd4 {[%emt 0:00:14]} Rd7 {[%emt 0:00:00]} 20. Nab5 {[%emt 0:01:45]} a6 {[%emt 0:00:00] [#]} 21. Bxb7 $1 {[%emt 0:00:27]} Rxb7 {[%emt 0:00:00] [#]} (21... e6 22. c6) 22. c6 $1 {[%emt 0:00:01][%cal Bc5c6,Bc6c7][%mdl 32]} Rb8 {[%emt 0:00:00]} 23. Na7 {[%emt 0:00:16]} Ra8 {[%emt 0:00:00] [#]} 24. c7 $1 {[%emt 0:00:07]} gxf5 {[%emt 0:00:00]} (24... a5 25. Ndc6) 25. Ndc6 {[%emt 0:00:27] Black must now prevent Nb8.} Kf6 {[%emt 0:00:00] [#]} 26. Nb8 $1 {[%emt 0:00:06] Black got outplayed after the opening.  Weighted Error Value: White=0.01 (flawless) /Black=0.89} 1-0

[Event "31st MPL National U18 Chess-ch 2022"]
[Site "Pollachi"]
[Date "2022.04.18"]
[Round "1.2"]
[White "Chehal Nikhil"]
[Black "Srihari L R"]
[Result "0-1"]
[ECO "B06"]
[WhiteElo "1246"]
[BlackElo "2400"]
[Annotator "TA"]
[PlyCount "76"]
[EventDate "2022.04.18"]
[EventCountry "IND"]
[SourceTitle "playchess.com"]
[Source "ChessBase"]
[SourceQuality "1"]
[TimeControl "5400+30"]

{[%evp 9,76,35,43,39,55,17,33,16,19,-8,0,-5,-14,6,21,0,10,15,29,-23,-22,-87,-74,-112,-102,-193,-187,-180,-44,-57,-14,-14,-14,-53,-48,-184,-66,-63,-14,-33,-33,-43,-16,-14,-8,-59,-50,-125,-120,-145,-143,-141,-128,-139,-120,-167,-167,-167,-147,-160,-155,-277,-111,-112,-110,-503,-491,-487,-468]} 1. d4 {[%emt 1:31:00]} d6 {[%emt 1:31:00]} 2. e4 {[%emt 0:00:30]} g6 {[%emt 0:00:30]} 3. Nc3 {[%emt 0:00:30]} Bg7 {[%emt 0:00:30]} 4. f4 {[%emt 0:00:30]} e6 {[%emt 0:00:30]} 5. Nf3 {[%emt 0:00:30]} a6 {[%emt 0:00:30]} 6. Be3 {[%emt 0:00:30] B06: Modern Defence.} Nd7 {[%emt 0:00:30]} 7. Be2 {[%emt 0:00:30]} Ne7 {[%emt 0:00:30]} 8. O-O {[%emt 0:00:30] White is slightly better.} b5 {[%emt 0:00:30]} 9. a3 {[%emt 0:00:30]} Bb7 {[%emt 0:00:30]} 10. Qd2 {[%emt 0:00:30]} O-O {[%emt 0:00:30]} 11. Rad1 {[%emt 0:00:30] [#]} Nb6 $146 {[%emt 0:00:30]} ({Predecessor:} 11... Rc8 12. e5 Nb6 13. Ng5 Nbd5 14. Nxd5 Nxd5 15. b3 Qe7 16. c4 Nxe3 17. Qxe3 bxc4 18. bxc4 {½-½ (60) Wolf,P (1906)-Schaffer,H (2261) Germany 2019}) 12. b3 {[%emt 0:00:30]} f5 {[%emt 0:00:30]} 13. e5 {[%emt 0:00:30]} Qd7 {[%emt 0:00:30]} 14. Na2 {[%emt 0:00:30]} ({Better is} 14. Bf2) 14... a5 $11 {[%emt 0:00:30][%cal Ba6a5,Ba5a4,Ba4b3][%mdl 32]} 15. c4 {[%emt 0:00:30]} (15. Rb1 $11) 15... a4 $17 {[%emt 0:00:30]} 16. Nc3 {[%emt 0:00:30][%cal Od4d5]} axb3 {[%emt 0:00:30]} 17. Nxb5 {[%emt 0:00:30]} (17. exd6 $17 cxd6 18. Nxb5) 17... d5 $1 $19 {[%emt 0:00:30]} 18. cxd5 {[%emt 0:00:30]} Nexd5 {[%emt 0:00:30]} (18... Nbxd5 19. Rb1 $15) ({Black should try} 18... Bxd5 $19 {Strongly threatening ...Nc4.} 19. Qc1 Rfb8 20. Nxc7 b2) 19. Rb1 $1 $15 c6 {[%emt 0:00:30]} (19... Bh6 $5 {[%cal Rf8b8]} 20. g3 (20. Rxb3 Nxe3 21. Qxe3 Nd5 $17) 20... c6 $15) 20. Nd6 {[%emt 0:01:00]} Rxa3 {[%emt 0:00:30] White must now prevent ...Ra2.} 21. Bd1 {[%emt 0:00:30]} Ba6 {[%emt 0:00:30] ...Ra2 is the strong threat.} 22. Qb2 {[%emt 0:00:30] [#]} (22. Re1 $1 $15) 22... Ra4 {[%emt 0:00:30]} ({And not} 22... Bxf1 23. Qxa3 Nxe3 24. Rxb3) (22... Nxe3 $1 $19 23. Qxa3 Bxf1 24. Rxb3 {[#]} Ra8 $1) 23. Re1 {[%emt 0:00:30]} Bd3 {[%emt 0:00:30]} ({Don't do} 23... Nxe3 24. Rxe3 Nc4 25. Qxb3 $14) (23... Nc4 $15 24. Nxc4 Bxc4 25. Bxb3 Bxb3 26. Qxb3 Rfa8) 24. Bxb3 $11 {[%emt 0:00:30]} Bxb1 25. Bxa4 Nxa4 (25... Be4 $5 {[%cal Rb6a4]} 26. Bd1 Bxf3 27. Bxf3 Ra8 $11) 26. Qxb1 Nac3 $36 {[%mdl 2048] Black has good play.} 27. Qd3 (27. Qb7 $11 Qxb7 28. Nxb7) 27... Nb5 $15 28. Nxb5 ({White should play} 28. g3 $15) 28... cxb5 $17 29. Rb1 Rb8 30. Bd2 Bf8 31. Ne1 b4 32. Qc4 (32. h3 $17) 32... Rc8 $19 33. Qd3 Qa4 34. Qb3 {Against Qa2} Qa3 {&Nero is more active.} 35. Nd3 (35. h3 $17) 35... Qxb3 (35... Qa7 $19 {and Black stays clearly on top.} 36. h3 Qxd4+ 37. Kh2 Kf7) 36. Rxb3 $17 Rc4 37. Nc5 $2 {[%mdl 8192]} (37. Kf2 $17) 37... Rxd4 $19 38. Nd3 Nc3 {Weighted Error Value: White=0.49/Black=0.22 (precise)} 0-1

[Event "31st MPL National U18 Chess-ch 2022"]
[Site "Pollachi"]
[Date "2022.04.18"]
[Round "1.3"]
[White "Avinash Ramesh"]
[Black "Midilesh MS"]
[Result "1-0"]
[ECO "A34"]
[WhiteElo "2402"]
[BlackElo "1470"]
[Annotator "TA"]
[PlyCount "87"]
[EventDate "2022.04.18"]
[EventCountry "IND"]
[SourceTitle "playchess.com"]
[Source "ChessBase"]
[SourceQuality "1"]
[TimeControl "5400+30"]

{[%evp 20,86,54,54,114,63,123,115,155,134,239,201,208,162,158,135,126,136,163,128,142,83,178,184,359,359,502,212,437,423,527,515,504,493,800,837,846,814,983,988,945,884,1264,1238,1187,1184,1529,1362,2212,2118,29986,29987,29987,29988,29989,29985,29991,29992,29992,29993,29993,29994,29996,29997,29997,29998,29998,29999,29999]} 1. d4 {[%emt 1:31:00]} Nf6 {[%emt 1:31:00]} 2. Nf3 {[%emt 0:00:30]} e6 {[%emt 0:00:30]} 3. c4 {[%emt 0:00:30]} d5 {[%emt 0:00:30]} 4. g3 {[%emt 0:00:30]} Be7 {[%emt 0:00:30]} 5. Bg2 {[%emt 0:00:30]} O-O {[%emt 0:00:30]} 6. O-O {[%emt 0:00:30]} c5 {[%emt 0:00:30]} 7. cxd5 {[%emt 0:00:30]} Nxd5 {[%emt 0:00:30]} 8. Nc3 {[%emt 0:00:30]} cxd4 {[%emt 0:00:30]} 9. Nxd5 {[%emt 0:00:30]} exd5 {[%emt 0:00:30]} 10. Nxd4 {[%emt 0:00:30]} Nc6 {[%emt 0:00:30]} 11. Be3 {[%emt 0:00:30]} Ne5 {[%emt 0:00:30] A34: Symmetrical English: 2 Nc3, lines with ...d5.} (11... Bg4 $14) 12. Bf4 {[%emt 0:00:30] [#]} (12. Rc1 $16) 12... Nc4 $146 {[%emt 0:00:30]} ({Black should try} 12... Bf6 $14) ({Predecessor:} 12... Bf6 13. Rc1 Qa5 14. Qb3 Rd8 15. Nb5 Be6 16. Nc7 Rab8 17. Rfd1 Rbc8 18. Nxe6 fxe6 19. Rxc8 Rxc8 20. Qxb7 {1-0 (36) Wohl,A (2342)-Pyke,M (2182) Queenstown 2009}) 13. b3 {[%emt 0:00:30]} Na3 {[%emt 0:00:30] White is better.} 14. Rc1 {[%emt 0:00:30]} Be6 {[%emt 0:00:30]} (14... a6 $16 15. Qd3 Bd6) 15. e4 {[%emt 0:00:30]} Bd6 {[%emt 0:00:30]} 16. Bxd6 {[%emt 0:00:30]} Qxd6 {[%emt 0:00:30]} 17. exd5 {[%emt 0:00:30]} Bd7 {[%emt 0:00:30]} 18. Qd2 $36 {[%emt 0:00:30][%mdl 2048] White is on the roll.} a5 {[%emt 0:00:30]} 19. Ne2 {[%emt 0:00:30]} Rfe8 {[%emt 0:00:30]} 20. Qf4 {[%emt 0:00:30]} Re5 {[%emt 0:00:30]} (20... Nb5 $16 21. Qxd6 Nxd6) 21. Nc3 $18 {[%emt 0:00:30] Threatens to win with Ne4.} Nb5 $2 {[%emt 0:00:30] [#]} (21... Bf5 22. Rce1 Rae8 23. Rxe5 Rxe5) 22. Ne4 $1 {[%emt 0:00:30]} Qe7 {[%emt 0:00:30]} 23. Nc5 {[%emt 0:00:30]} (23. d6 $142 Qe8 24. Nc5) 23... Bf5 $2 {[%emt 0:00:30] [#]} (23... Bc8 {was necessary.} 24. Nd3 Re2) 24. Nxb7 $1 {[%emt 0:00:30][%cal Od5d6,Bc5b7,Bb7a5,Ba5c6][%mdl 544] Hoping for d6!} Re8 {[%emt 0:00:30]} (24... g5 25. Qd2) 25. Nxa5 {[%emt 0:00:30]} g5 {[%emt 0:00:30]} 26. Qa4 {[%emt 0:00:30]} Bd3 {[%emt 0:00:30]} (26... Bd7 $142 27. Nc6 Bxc6) 27. Nc6 {[%emt 0:00:30][%csl LRe5,LRe7]} Qd6 {[%emt 0:00:30]} 28. Nxe5 {[%emt 0:00:30]} Rxe5 {[%emt 0:00:30]} 29. Rfd1 {[%emt 0:00:30]} Be2 {[%emt 0:00:30]} 30. Re1 {[%emt 0:00:30]} Nc7 {[%emt 0:00:30]} 31. Qc6 {[%emt 0:00:30]} Qxc6 {[%emt 0:00:30]} 32. Rxc6 {[%emt 0:00:30]} Nb5 {[%emt 0:00:30]} 33. Rc2 {[%emt 0:00:30]} Nd4 {[%emt 0:00:30]} 34. Rd2 {[%emt 0:00:30]} f5 {[%emt 0:00:30]} 35. Rxd4 {[%emt 0:00:30] White mates.} f4 {[%emt 0:00:30]} 36. gxf4 {[%emt 0:00:30]} gxf4 {[%emt 0:00:30]} 37. Rxf4 {[%emt 0:00:30]} Rg5 {[%emt 0:00:30]} 38. Rxe2 {[%emt 0:00:30]} Kg7 {[%emt 0:00:30]} 39. Re7+ {[%emt 0:00:30]} Kg6 {[%emt 0:00:30]} 40. h4 {[%emt 0:00:30]} Rh5 {[%emt 0:00:30]} 41. Be4+ {[%emt 0:00:30]} Rf5 {[%emt 0:00:30]} 42. Bxf5+ {[%emt 0:00:30]} Kf6 {[%emt 0:00:30]} 43. d6 {[%emt 0:00:30][%cal Rf5h7]} h5 {[%emt 0:00:30]} 44. Bb1# {[%emt 0:00:30] Weighted Error Value: White=0.26 (precise) /Black=0.77} 1-0

[Event "31st MPL National U18 Chess-ch 2022"]
[Site "Pollachi"]
[Date "2022.04.18"]
[Round "1.4"]
[White "Rahul Kumar, Pune"]
[Black "Ayush Sharma"]
[Result "0-1"]
[ECO "A47"]
[WhiteElo "2184"]
[BlackElo "2302"]
[Annotator "TA"]
[PlyCount "82"]
[EventDate "2022.04.18"]
[EventCountry "IND"]
[SourceTitle "playchess.com"]
[Source "ChessBase"]
[SourceQuality "1"]
[TimeControl "5400+30"]

{[%evp 14,82,28,-3,-9,-9,-8,-12,-2,-3,0,0,0,-5,8,0,18,6,15,0,0,-29,-25,-232,-242,-243,-244,-234,-230,-268,-264,-275,-243,-239,-226,-296,-280,-291,-235,-397,-417,-455,-467,-519,-494,-481,-479,-1195,-1188,-29982,-29982,-29985,-29986,-29988,-29989,-29989,-29990,-29990,-29991,-29992,-29993,-29993,-29993,-29995,-29996,-29996,-29997,-29997,-29997,-29998,-29999]} 1. d4 {[%emt 1:31:00]} Nf6 {[%emt 1:31:00]} 2. Nf3 {[%emt 0:00:30]} e6 {[%emt 0:00:30]} 3. Nbd2 {[%emt 0:00:30]} c5 {[%emt 0:00:30]} 4. e3 {[%emt 0:00:30]} b6 {[%emt 0:00:30]} 5. c3 {[%emt 0:00:30]} Bb7 {[%emt 0:00:30]} 6. Bd3 {[%emt 0:00:30]} Be7 {[%emt 0:00:30]} 7. O-O {[%emt 0:00:30]} O-O {[%emt 0:00:30]} 8. Re1 {[%emt 0:00:30] 8.Qe2 gains popularity.} d5 {[%emt 0:00:30] A47: 1 d4 Nf6 2 Nf3 b6: Torre, London and Colle Systems.} 9. e4 $1 {[%emt 0:00:30]} dxe4 {[%emt 0:00:30]} 10. Nxe4 {[%emt 0:00:30]} cxd4 {[%emt 0:00:30] Strongly threatening ...Nxe4. The position is equal.} 11. Nxd4 {[%emt 0:00:30]} Nbd7 {[%emt 0:00:30]} 12. Bg5 {[%emt 0:00:30]} h6 {[%emt 0:00:30]} 13. Bh4 {[%emt 0:00:30]} Nc5 {[%emt 0:00:30]} 14. Nxc5 {[%emt 0:00:30]} bxc5 {[%emt 0:00:30]} 15. Nf3 {[%emt 0:00:30] [#]} Qd5 $146 {[%emt 0:00:30]} ({Predecessor:} 15... Qb6 16. Qe2 Rfd8 17. b3 Qc6 18. Bb5 Qd5 19. Qe5 Qxe5 20. Nxe5 g5 21. Bg3 Rac8 22. f3 a6 {0-1 (42) Lamberts,G-Hester,D Australia 1996}) 16. Bxf6 {[%emt 0:00:30]} Bxf6 {[%emt 0:00:30]} 17. Qe2 {[%emt 0:00:30]} Rab8 {[%emt 0:00:30][%cal Ba8b8,Bb8b2,Bb2a2][%mdl 32]} 18. Be4 $2 {[%emt 0:00:30] This move loses the game for White.} (18. Qc2 $11 {and White stays safe.}) 18... Qxe4 $19 {[%emt 0:00:30]} 19. Qxe4 {[%emt 0:00:30]} Bxe4 {[%emt 0:00:30][%mdl 64] [#] Discovered Attack} 20. Rxe4 {[%emt 0:00:30]} Rxb2 {[%emt 0:00:30]} 21. Ne5 {[%emt 0:00:30]} Rd8 {[%emt 0:00:30] Prevents Nd7.} 22. Ree1 {[%emt 0:00:30]} Bxe5 {[%emt 0:00:30]} 23. Rxe5 {[%emt 0:00:30]} Rxa2 {[%emt 0:00:30][%mdl 4096] Endgame KRR-KRR} 24. Rae1 {[%emt 0:00:30]} Rdd2 {[%emt 0:00:30]} 25. Rf1 {[%emt 0:00:30]} Rd5 {[%emt 0:00:30]} 26. Re3 {[%emt 0:00:30]} (26. Rxd5 {was the only defense.} exd5 27. Rd1) 26... a5 {[%emt 0:00:30]} 27. g3 {[%emt 0:00:30]} a4 {[%emt 0:00:30]} 28. Rb1 {[%emt 0:00:30]} a3 {[%emt 0:00:30]} 29. c4 {[%emt 0:00:30]} Rdd2 {[%emt 0:00:30] ...Rab2 is the strong threat.} 30. Rf3 {[%emt 0:00:30]} (30. Rb8+ $142 Kh7 31. Ra8 Rxf2 32. Raxa3) 30... Rab2 {[%emt 0:00:30]} 31. Rb3 {[%emt 0:00:30] [#]} a2 $1 {[%emt 0:00:30][%mdl 512] Black mates.} 32. R3xb2 {[%emt 0:00:30]} (32. Rb8+ Kh7) 32... Rxb2 {[%emt 0:00:30] KR-KR} 33. Ra1 {[%emt 0:00:30]} Rb1+ {[%emt 0:00:30]} 34. Rxb1 {[%emt 0:00:30]} axb1=Q+ {[%emt 0:00:30]} 35. Kg2 {[%emt 0:00:30]} Qe4+ {[%emt 0:00:30]} 36. f3 {[%emt 0:00:30]} Qe2+ {[%emt 0:00:30]} 37. Kg1 {[%emt 0:00:30]} e5 {[%emt 0:00:30][%cal Be6e5,Be5e4,Be4e3,Be3e2][%mdl 32]} 38. f4 {[%emt 0:00:30]} e4 {[%emt 0:00:30]} 39. h3 {[%emt 0:00:30]} e3 {[%emt 0:00:30]} 40. g4 {[%emt 0:00:30]} Qf2+ {[%emt 0:00:30]} 41. Kh1 {[%emt 0:00:30]} e2 {[%emt 0:00:30] Weighted Error Value: White=0.63/Black=0.05 (flawless)} 0-1

[Event "31st MPL National U18 Chess-ch 2022"]
[Site "Pollachi"]
[Date "2022.04.18"]
[Round "1.5"]
[White "Harshad S"]
[Black "Bharanidharan Nedunchezhian"]
[Result "1-0"]
[ECO "B50"]
[WhiteElo "2328"]
[BlackElo "1296"]
[Annotator "TA"]
[PlyCount "77"]
[EventDate "2022.04.18"]
[EventCountry "IND"]
[SourceTitle "playchess.com"]
[Source "ChessBase"]
[SourceQuality "1"]
[TimeControl "5400+30"]

{[%evp 9,77,-29,0,-5,0,0,22,18,33,-16,59,-3,-4,-10,55,54,50,45,68,59,78,97,87,84,100,86,106,107,152,145,261,246,253,246,231,203,427,179,263,243,463,156,148,143,260,228,252,164,383,372,370,347,427,416,495,479,526,518,741,734,875,837,1462,1334,1237,1179,5318,2072,29994,29995]} 1. e4 {[%emt 0:00:17]} c5 {[%emt 0:00:36]} 2. Nf3 {[%emt 0:00:35][%cal Bg1f3,Bf3e5,Be5c4,Bc4e3][%mdl 32]} d6 {[%emt 0:00:14]} 3. b3 {[%emt 0:00:52]} Nf6 {[%emt 0:02:01]} 4. Nc3 {[%emt 0:06:02]} a6 {[%emt 0:01:02]} 5. a4 {[%emt 0:00:54]} e6 {[%emt 0:01:41]} 6. e5 {[%emt 0:04:05] B50: Sicilian: 2...d6, Miscellaneous.} dxe5 {[%emt 0:04:14]} 7. Nxe5 {[%emt 0:01:12] [#]} Bd6 $146 {[%emt 0:02:24]} ({Predecessor:} 7... Be7 8. Bb2 Nbd7 9. Nc4 b6 10. Qf3 Ra7 11. Bd3 Qc7 12. O-O Bb7 13. Qh3 Nd5 14. Nxd5 Bxd5 {1-0 (33) Gershkowich,D (2228)-Vagman,R (2073) Ramat Gan 2020}) 8. Nc4 {[%emt 0:03:02] The position is equal.} Bc7 {[%emt 0:01:32]} 9. g3 {[%emt 0:03:02]} (9. Ba3 $14) 9... e5 {[%emt 0:02:57]} (9... Bd7 $1 $11) 10. Bg2 {[%emt 0:00:47]} (10. Ba3 $14) 10... Bg4 $11 {[%emt 0:02:02]} 11. f3 {[%emt 0:01:10]} Bf5 {[%emt 0:00:10]} (11... Be6 $11) 12. Ba3 $14 {[%emt 0:04:21]} Nbd7 {[%emt 0:03:10]} 13. Ne3 {[%emt 0:02:52]} Be6 {[%emt 0:01:58]} 14. O-O {[%emt 0:00:40] Hoping for f4.} Rb8 {[%emt 0:08:25]} 15. f4 {[%emt 0:04:31]} exf4 {[%emt 0:01:45]} 16. gxf4 {[%emt 0:00:26]} g6 {[%emt 0:00:56]} 17. Kh1 {[%emt 0:04:33]} Nh5 {[%emt 0:07:27]} 18. Ncd5 $36 {[%emt 0:02:46][%mdl 2048] White is on the roll.} Bd6 {[%emt 0:09:22]} 19. Nc4 {[%emt 0:03:53]} Ndf6 {[%emt 0:00:25]} (19... Be7 $16) 20. Nxf6+ {[%emt 0:01:37]} Nxf6 {[%emt 0:00:56]} 21. Nxd6+ {[%emt 0:00:04]} (21. Bb2 Bc7 $16) 21... Qxd6 {[%emt 0:00:09]} 22. Bb2 {[%emt 0:00:36]} Bd5 $2 {[%emt 0:02:24] [#]} (22... Qe7 23. Qf3 Rg8) 23. Qe2+ {[%emt 0:03:22]} (23. Bxd5 $142 Qxd5+ 24. Qf3) 23... Kd7 {[%emt 0:01:37]} (23... Kf8 {is a better defense.} 24. Be5 Qe6 25. Bxd5 Qxd5+ 26. Qg2 Qxg2+ 27. Kxg2 Kg7 28. Bxb8 Rxb8) 24. Be5 $18 {[%emt 0:08:19]} Qc6 {[%emt 0:03:33]} (24... Rbe8 25. Kg1 (25. Qd3 Bxg2+ 26. Kxg2 Qxd3 $11) 25... Kc8 26. Bh3+ (26. Bxd6 Rxe2 27. Bh3+ Be6 $11) 26... Nd7) 25. c4 $2 {[%emt 0:00:57]} (25. Qd3 $18 {is the precise move to win.} Kc8 26. Qh3+ (26. Bxd5 Nxd5 27. Qh3+ Qd7 $18) 26... Qd7 27. f5) 25... Bxg2+ $16 {[%emt 0:00:51]} 26. Qxg2 {[%emt 0:00:03] Dancing on a razor blade.} Qxg2+ {[%emt 0:01:18]} (26... Rbc8 $16) 27. Kxg2 $18 {[%emt 0:00:03]} Ne4 {[%emt 0:00:08]} 28. f5 {[%emt 0:03:11]} ({Don't play} 28. Bxb8 Rxb8 29. Rad1 b6 $18) ({Much less strong is} 28. Bxh8 Rxh8 29. Rad1 Kc8 $18) 28... gxf5 {[%emt 0:03:13]} (28... Nd6 {might work better.}) 29. Bxh8 {[%emt 0:03:28]} Rxh8 {[%emt 0:00:06]} 30. Rxf5 {[%emt 0:00:27][%mdl 4096] Endgame KRR-KRN} Rg8+ {[%emt 0:06:04]} 31. Kf3 {[%emt 0:05:29]} Nxd2+ {[%emt 0:01:24]} 32. Kf4 {[%emt 0:04:03]} Nxb3 {[%emt 0:02:57]} 33. Rb1 {[%emt 0:00:18]} Nd2 {[%emt 0:03:51]} 34. Rd5+ {[%emt 0:00:38]} Kc6 {[%emt 0:01:34]} 35. Rxd2 {[%emt 0:00:02]} Rg6 {[%emt 0:00:09]} 36. a5 {[%emt 0:00:17] [#] Intending Rb6+ and mate.} Rf6+ {[%emt 0:00:07]} 37. Ke5 {[%emt 0:00:10]} Rf3 {[%emt 0:00:10]} 38. Rdb2 {[%emt 0:00:29] White wants to mate with Rb6+.} Rc3 {[%emt 0:00:24]} 39. Rxb7 {[%emt 0:00:12] Weighted Error Value: White=0.30/Black=0.82} 1-0

[Event "31st MPL National U18 Chess-ch 2022"]
[Site "Pollachi"]
[Date "2022.04.18"]
[Round "2.1"]
[White "Naveen Kanniyappan S"]
[Black "Bharath Subramaniyam H"]
[Result "0-1"]
[ECO "B22"]
[WhiteElo "1564"]
[BlackElo "2508"]
[Annotator "TA"]
[PlyCount "80"]
[EventDate "2022.04.18"]
[EventCountry "IND"]
[SourceTitle "playchess.com"]
[Source "ChessBase"]
[SourceQuality "1"]
[TimeControl "5400+30"]

{[%evp 13,80,16,50,3,14,-23,-17,-10,-10,-15,-10,-22,0,-5,0,-10,0,-39,0,-93,-86,-85,-90,-91,-96,-99,-104,-102,-108,-112,-103,-107,-83,-80,-73,-81,-74,-81,-73,-81,-77,-88,-75,-87,-72,-89,-84,-355,-354,-458,-434,-437,-452,-447,-389,-416,-419,-418,-413,-468,-463,-6175,-6195,-2069,-2059,-29977,-29977,-29974,-11568]} 1. e4 {[%emt 0:00:03][%cal Be2e4,Be4e5][%mdl 32]} c5 {[%emt 0:00:12]} 2. c3 {[%emt 0:00:04]} Nf6 {[%emt 0:01:13]} 3. e5 {[%emt 0:00:06]} Nd5 {[%emt 0:00:09]} 4. d4 {[%emt 0:00:02]} cxd4 {[%emt 0:01:32]} 5. cxd4 {[%emt 0:00:05]} e6 {[%emt 0:10:06]} 6. Nf3 {[%emt 0:00:12]} d6 {[%emt 0:01:25]} 7. Bc4 {[%emt 0:01:21]} Nb6 {[%emt 0:06:42]} 8. Bb5+ {[%emt 0:00:07] B22: Sicilian: 2 c3.} (8. Bd3 $14 {was preferrable.}) 8... Bd7 $11 {[%emt 0:01:08]} 9. Bxd7+ {[%emt 0:00:14]} Qxd7 {[%emt 0:03:02]} 10. O-O {[%emt 0:00:09] The position is equal.} Nc6 {[%emt 0:00:12]} 11. Nc3 {[%emt 0:00:58]} Be7 {[%emt 0:02:59]} 12. Bf4 {[%emt 0:01:55]} d5 {[%emt 0:08:09]} 13. Rc1 {[%emt 0:01:38]} O-O {[%emt 0:02:07] [#]} 14. h3 $146 {[%emt 0:01:10]} ({Predecessor:} 14. Bg5 a6 15. Bxe7 Qxe7 16. Na4 Nxa4 17. Qxa4 Rfc8 18. Rc5 Na7 19. Rfc1 Rc6 20. b4 {0-1 (39) Bonvalot,I-Reams,C Massy 1993}) 14... Rac8 {[%emt 0:02:07]} 15. g4 {[%emt 0:01:07]} f6 {[%emt 0:02:52]} (15... Nc4 $5 {[%cal Rc4b2]}) 16. Bh2 {[%emt 0:02:52] [#]} (16. exf6 $11 {remains equal.} Bxf6 17. Bg3) 16... fxe5 $1 $17 {[%emt 0:02:41]} 17. Nxe5 {[%emt 0:00:13]} Nxe5 {[%emt 0:00:19]} 18. Bxe5 {[%emt 0:01:28]} Nc4 {[%emt 0:00:48]} 19. Qe2 {[%emt 0:00:04]} Nxe5 {[%emt 0:01:37]} 20. Qxe5 {[%emt 0:00:11]} Bd6 {[%emt 0:00:37]} 21. Qe2 {[%emt 0:00:26]} Rce8 {[%emt 0:06:38][%cal Oh7h5,Bc8e8,Be8e7,Be7f7,Bf7f4][%mdl 32] &Nero is more active.} 22. Qd3 {[%emt 0:05:33]} Bb8 {[%emt 0:11:12]} 23. Ne2 {[%emt 0:00:24]} Qd6 {[%emt 0:00:15][%csl Gb8][%cal Rd6h2] [#]} 24. Ng3 {[%emt 0:04:17]} Re7 {[%emt 0:10:15]} 25. Rc3 {[%emt 0:10:57]} Ref7 {[%emt 0:00:54]} 26. Qc2 {[%emt 0:00:19]} Rf4 {[%emt 0:07:32]} 27. Rd3 {[%emt 0:03:29]} a6 {[%emt 0:04:55]} 28. Qe2 {[%emt 0:03:51]} Ba7 {[%emt 0:00:35]} 29. Qe3 {[%emt 0:03:27]} g6 {[%emt 0:06:19][%cal Oe6e5]} 30. Rd2 $2 {[%emt 0:02:36][%mdl 8192] White does not recover from this.} (30. Kh1 $17) 30... Rf3 $19 {[%emt 0:01:22]} 31. Qe2 {[%emt 0:00:02][%cal Og3f5]} Rxg3+ {[%emt 0:01:51]} 32. fxg3 {[%emt 0:01:06]} Qxg3+ {[%emt 0:00:01]} 33. Kh1 {[%emt 0:00:48]} Qxh3+ {[%emt 0:00:01]} 34. Kg1 {[%emt 0:00:04]} Rxf1+ {[%emt 0:00:55]} 35. Qxf1 {[%emt 0:00:02]} Qxg4+ {[%emt 0:00:20] KQR-KQB} 36. Kh1 {[%emt 0:02:59]} Bxd4 {[%emt 0:00:24]} 37. Rc2 {[%emt 0:00:56]} (37. Re2 $142) 37... Qe4+ {[%emt 0:00:16]} 38. Rg2 {[%emt 0:00:06]} Be5 {[%emt 0:02:15] ( -> ...Qh4+)} 39. Kg1 {[%emt 0:01:31]} Qe3+ {[%emt 0:01:04]} 40. Qf2 {[%emt 0:00:13]} Qc1+ {[%emt 0:00:07] Weighted Error Value: White=0.76/Black=0.06 (flawless)} 0-1